bitfinex/quotes_ETHUSD_20251116
["timestamp","ask_amount","ask_price","bid_price","bid_amount"]
[1763257261506,0.002,3147.1,3147.0,1.07787852]
[1763257261720,0.59205,3147.3,3147.1,1.5392448]
[1763257262022,0.002,3147.5,3147.3,0.405504]
[1763257262192,0.002,3147.5,3147.4,4.25510416]
[1763257262403,0.002,3147.5,3147.4,5.38884496]
[1763257262941,0.592,3147.6,3147.5,1.5392448]
[1763257263144,0.592,3147.6,3147.5,5.16691039]
[1763257263310,0.002,3148.9,3147.5,2.9044283]
[1763257263493,0.002,3148.9,3147.7,3.23201248]
[1763257263693,0.002,3148.9,3147.7,3.904387]
[1763257263950,0.002,3148.9,3147.7,4.3641066]
[1763257264241,0.002,3148.9,3147.8,1.5392448]
[1763257264409,0.002,3148.9,3147.8,3.904387]
[1763257264595,0.002,3148.9,3147.8,2.21161932]
[1763257264792,0.002,3148.9,3148.1,1.53184814]
[1763257264998,0.002,3148.9,3148.1,3.84071143]
[1763257265347,0.002,3148.9,3148.1,2.71436729]
[1763257265500,0.002,3148.9,3148.2,0.405504]
[1763257265851,0.002,3149.3,3148.4,0.405504]
[1763257266069,0.002,3149.3,3149.2,1.24859176]
[1763257266333,0.1968,3151.3,3149.5,0.405504]
[1763257266627,0.1968,3151.3,3149.7,1.24639686]
[1763257266929,3.37011056,3151.3,3149.9,0.405504]
[1763257267133,0.4954,3151.2,3149.4,0.84089286]
[1763257267291,1.6291408,3151.2,3149.1,1.1337408]
[1763257267698,0.4954,3151.1,3149.2,0.405504]
[1763257268398,1.1337408,3150.9,3149.4,0.405504]
[1763257268813,0.4954,3150.8,3149.4,0.405504]
[1763257269309,0.4954,3150.8,3148.5,1.1337408]
[1763257269502,0.4954,3150.8,3148.6,0.66992506]
[1763257269925,0.4954,3150.8,3148.3,6.35257594]
[1763257270108,0.4954,3150.8,3148.4,1.5392448]
[1763257270312,9.52169358,3150.7,3148.6,0.405504]
[1763257270515,9.52169358,3150.7,3148.7,0.67577352]
[1763257270736,0.4954,3150.6,3148.7,0.67577352]
[1763257270934,1.6291408,3150.6,3148.2,3.17641827]
[1763257271135,1.6291408,3150.6,3148.1,0.50274797]
[1763257271346,0.4954,3150.5,3147.5,1.1337408]
[1763257271549,0.4954,3150.5,3147.6,0.03177023]
[1763257271865,0.4954,3150.5,3147.7,0.405504]
[1763257272074,0.4954,3150.5,3147.9,0.405504]
[1763257272362,3.1742001,3150.4,3148.3,1.5392448]
[1763257272542,3.66950709,3150.5,3148.5,0.405504]
[1763257272746,3.66950709,3150.5,3148.4,1.45625395]
[1763257272747,0.4954,3150.5,3148.7,0.405504]
[1763257272945,3.66954979,3150.5,3148.7,0.405504]
[1763257273255,3.66954979,3150.5,3148.6,0.405504]
[1763257273414,6.84369958,3150.5,3148.5,0.405504]
[1763257273617,0.4969,3150.4,3148.6,0.18299958]
[1763257273818,1.6306408,3150.4,3148.3,1.1337408]
[1763257274155,1.6306408,3150.4,3146.9,3.17773046]
[1763257274341,10.01980258,3150.3,3147.3,3.352]
[1763257274549,10.01980258,3150.3,3147.4,0.03177225]
[1763257274550,13.19410344,3150.3,3147.4,0.03177225]
[1763257274719,0.4969,3150.2,3147.4,0.03177225]
[1763257274922,0.4969,3150.2,3147.1,9.53258553]
[1763257275158,0.4969,3150.2,3147.2,1.65420506]
[1763257275353,0.4969,3150.2,3147.3,2.20887882]
[1763257275528,0.4969,3150.2,3147.5,0.405504]
[1763257275731,0.4969,3150.2,3147.7,0.405504]
[1763257276064,0.4969,3150.2,3147.9,0.405504]
[1763257276257,0.4969,3150.2,3148.5,0.001]
[1763257276258,3.67130842,3150.2,3148.5,0.001]
[1763257276561,0.002,3150.4,3148.6,0.405504]
[1763257276859,0.002,3150.4,3148.5,0.03276115]
[1763257276860,0.002,3150.4,3148.8,0.405504]
[1763257277389,0.002,3150.4,3148.6,0.405504]
[1763257277390,0.4768,3150.4,3148.6,0.405504]
[1763257277566,3.65100706,3150.4,3148.6,0.405504]
[1763257277879,6.82521412,3150.4,3148.6,0.405504]
[1763257278174,3.65100706,3150.4,3148.6,0.405504]
[1763257278382,3.65100706,3150.4,3148.8,1.5392448]
[1763257278383,6.82521412,3150.4,3148.8,1.5392448]
[1763257278537,0.4748,3150.3,3148.8,1.5392448]
[1763257279764,0.4748,3150.3,3148.8,0.405504]
[1763257279964,0.4748,3150.3,3148.6,1.1337408]
[1763257280143,1.6085408,3150.3,3148.5,6.35323122]
[1763257280343,1.6085408,3150.3,3148.5,0.001]
[1763257280344,1.1337408,3150.1,3148.5,0.001]
[1763257280771,0.4748,3150.0,3148.5,0.001]
[1763257281179,0.1955,3149.9,3148.5,0.001]
[1763257281779,0.4748,3149.8,3148.5,0.001]
[1763257282360,0.1955,3148.6,3148.5,0.001]
[1763257282697,0.4748,3149.7,3148.5,0.001]
[1763257284576,0.1955,3148.6,3148.5,0.001]
[1763257285083,0.6703,3148.6,3147.9,0.001]
[1763257285448,0.4748,3148.5,3147.9,0.001]
[1763257285643,0.4748,3148.5,3146.6,0.67702047]
[1763257285847,0.4748,3148.5,3146.1,0.83646122]
[1763257286082,0.4748,3148.5,3146.2,0.67711366]
[1763257286083,0.405504,3148.4,3146.2,0.67711366]
[1763257286280,0.405504,3148.4,3146.0,1.1337408]
[1763257286494,0.1955,3148.6,3146.3,7.49040602]
[1763257286495,1.1337408,3148.2,3146.3,7.49040602]
[1763257286790,1.1337408,3148.2,3146.5,0.405504]
[1763257286946,0.4748,3148.1,3146.7,0.405504]
[1763257287151,0.4748,3148.1,3146.9,0.405504]
[1763257287390,0.4748,3148.1,3147.1,0.405504]
[1763257287595,0.4748,3148.1,3146.6,0.83646122]
[1763257287808,0.1955,3147.2,3146.3,0.83646122]
[1763257287977,0.1955,3148.0,3146.4,0.67889326]
[1763257288182,0.1955,3147.3,3146.5,0.67889326]
[1763257288384,0.1955,3147.3,3146.7,3.17793243]
[1763257288622,0.1955,3147.3,3146.8,0.67889326]
[1763257288771,0.1955,3147.3,3146.5,4.71737923]
[1763257288968,3.37284322,3147.3,3146.7,0.405504]
[1763257289173,0.1955,3147.3,3146.8,0.67977405]
[1763257289382,0.1955,3147.3,3146.9,0.68051778]
[1763257289592,0.1955,3147.3,3146.6,0.405504]
[1763257289907,0.1955,3147.3,3146.7,0.68051741]
[1763257289908,3.37284024,3147.3,3146.7,0.68051741]
[1763257290062,3.37284024,3147.3,3146.8,0.68051741]
[1763257290267,3.37284024,3147.3,3146.9,0.68051741]
[1763257290499,0.4748,3147.2,3146.5,4.01453904]
[1763257290802,0.4748,3147.2,3146.6,0.68027369]
[1763257290999,0.1955,3147.3,3146.7,0.68027369]
[1763257291217,0.1955,3147.3,3146.8,0.68027369]
[1763257291372,0.1955,3147.3,3146.9,0.68027369]
[1763257291706,3.37283023,3147.3,3146.6,1.5392448]
[1763257291871,0.1955,3147.3,3146.7,0.68026076]
[1763257292068,3.37284004,3147.3,3146.8,0.68026076]
[1763257292290,3.84764004,3147.3,3146.9,0.68026076]
[1763257292498,3.84764004,3147.3,3146.6,3.17802319]
[1763257292672,0.4748,3147.2,3146.7,0.67998541]
[1763257292887,0.4748,3147.2,3146.3,1.12119048]
[1763257292888,0.4748,3147.2,3146.3,1.97020202]
[1763257293101,0.4748,3147.2,3146.4,0.68003514]
[1763257293302,0.4748,3147.2,3146.5,0.68003514]
[1763257293501,0.4748,3147.2,3146.6,0.68003514]
[1763257293708,0.4748,3147.2,3146.3,3.17832676]
[1763257293903,0.4748,3147.2,3146.4,0.67963864]
[1763257294101,0.4748,3147.2,3146.3,1.1337408]
[1763257294102,0.4748,3147.2,3146.5,0.67963864]
[1763257294415,0.4748,3147.2,3146.5,0.001]
[1763257294604,3.17752851,3147.1,3146.5,0.001]
[1763257294801,6.35505702,3147.1,3146.5,0.001]
[1763257295017,6.35505702,3147.1,3146.2,0.001]
[1763257295018,1.5973408,3147.0,3146.2,0.001]
[1763257295319,1.5973408,3147.0,3144.9,1.68617552]
[1763257295320,1.5973408,3147.0,3145.9,0.001]
[1763257295484,0.4636,3146.9,3145.9,0.001]
[1763257296494,1.1337408,3146.7,3145.9,0.001]
[1763257296923,0.4636,3146.6,3145.9,0.001]
[1763257297124,0.405504,3146.5,3144.3,0.83646122]
[1763257297430,0.405504,3146.5,3143.6,0.83646122]
[1763257297431,0.1953,3144.9,3143.6,0.83646122]
[1763257297725,0.1953,3144.9,3143.7,0.67811443]
[1763257297929,0.4636,3144.8,3143.8,1.38212971]
[1763257298079,0.4636,3144.8,3143.8,0.70401528]
[1763257298282,0.4636,3144.8,3143.6,3.18097204]
[1763257298514,3.17995357,3144.7,3143.7,3.18094503]
[1763257298681,3.17995357,3144.7,3143.5,0.406504]
[1763257298886,6.82350714,3144.7,3143.6,1.8111488]
[1763257299082,0.4636,3144.6,3143.6,1.1337408]
[1763257299322,0.4636,3144.6,3143.7,0.43159078]
[1763257299534,0.4636,3144.6,3143.6,1.1337408]
[1763257299685,0.1953,3144.9,3143.6,1.1402408]
[1763257299884,0.4636,3144.8,3143.6,1.1337408]
[1763257300188,0.4636,3144.8,3143.5,0.001]
[1763257300490,3.17995357,3144.7,3143.5,0.001]
[1763257300696,0.4636,3144.6,3143.5,0.001]
[1763257301927,0.1953,3143.6,3143.5,0.001]
[1763257302284,0.6589,3143.6,3143.5,0.001]
[1763257302915,3.83996629,3143.6,3143.5,0.001]
[1763257303110,0.6589,3143.6,3143.5,0.001]
[1763257303313,3.83996629,3143.6,3143.5,0.001]
[1763257303650,0.6589,3143.6,3143.5,0.001]
[1763257304481,0.1953,3143.6,3143.5,0.001]
[1763257304685,0.4636,3144.6,3143.5,0.001]
[1763257304921,0.1953,3144.7,3143.6,0.405504]
[1763257305296,0.4636,3144.6,3143.6,0.405504]
[1763257305616,0.1953,3144.7,3143.5,0.001]
[1763257305982,0.1953,3144.7,3143.5,0.0075]
[1763257306187,0.4636,3144.6,3143.6,0.4262684]
[1763257306399,0.4636,3144.6,3143.5,0.001]
[1763257306400,0.1953,3143.7,3143.5,0.001]
[1763257306597,3.18015582,3144.5,3143.5,0.001]
[1763257306802,0.1953,3143.9,3143.5,0.001]
[1763257307126,0.6589,3143.9,3143.5,0.001]
[1763257307734,0.4636,3143.8,3143.5,0.001]
[1763257308044,0.1953,3143.9,3143.5,0.001]
[1763257308229,0.6589,3143.9,3143.5,0.001]
[1763257308534,0.4636,3143.8,3143.5,0.001]
[1763257309039,0.1953,3143.9,3143.5,0.001]
[1763257309348,0.4636,3143.8,3143.5,0.001]
[1763257309910,0.4636,3143.8,3143.1,0.001]
[1763257310344,0.1953,3143.9,3143.1,0.001]
[1763257310530,0.6589,3143.9,3143.1,0.001]
[1763257310724,3.18086392,3143.8,3143.1,0.001]
[1763257310925,6.82532784,3143.8,3143.1,0.001]
[1763257311161,0.4636,3143.7,3143.1,0.001]
[1763257312246,1.5973408,3143.7,3143.1,0.001]
[1763257312652,0.4636,3143.6,3142.9,0.001]
[1763257312951,0.4636,3143.6,3142.8,0.001]
[1763257312952,1.1337408,3143.4,3142.8,0.001]
[1763257313248,0.1953,3142.9,3142.4,0.001]
[1763257313612,0.4636,3142.8,3142.4,0.001]
[1763257314755,6.36395456,3142.7,3142.4,0.001]
[1763257315255,0.4636,3142.6,3142.4,0.001]
[1763257315919,0.4614,3142.5,3142.4,0.001]
[1763257316316,0.925,3142.5,3142.4,0.001]
[1763257316545,0.4614,3142.5,3142.4,0.001]
[1763257316748,0.1953,3142.9,3142.4,0.001]
[1763257316951,0.4636,3143.7,3142.4,0.0135]
[1763257317154,0.4636,3143.7,3142.5,0.46401129]
[1763257317359,0.1953,3143.9,3142.7,4.62661291]
[1763257317852,6.36010938,3144.6,3143.5,4.62661291]
[1763257318017,3.64365469,3144.6,3143.5,4.62661291]
[1763257318218,1.5973408,3144.6,3143.5,4.62661291]
[1763257318420,0.1953,3144.7,3143.6,0.418004]
[1763257318682,0.4636,3145.4,3144.0,0.405504]
[1763257318843,3.17954913,3145.1,3144.1,6.36112082]
[1763257319029,1.1337408,3145.0,3143.8,3.18086392]
[1763257319229,1.3290408,3145.2,3143.9,0.405504]
[1763257319435,0.1953,3144.9,3143.6,0.405504]
[1763257320052,0.6589,3144.9,3143.6,0.405504]
[1763257320255,0.6589,3144.9,3143.1,1.1337408]
[1763257320440,0.6589,3144.9,3143.2,0.405504]
[1763257320441,0.4636,3144.8,3143.2,0.405504]
[1763257320753,1.1337408,3144.6,3143.4,6.36253736]
[1763257320954,1.1337408,3144.6,3143.4,3.18126868]
[1763257321156,0.4636,3144.5,3143.4,3.18126868]
[1763257321922,0.4636,3144.5,3142.9,6.36345237]
[1763257321923,0.1953,3143.5,3142.9,6.36345237]
[1763257322123,0.1953,3143.5,3142.9,3.18167758]
[1763257322582,0.6589,3143.8,3142.9,3.18167758]
[1763257322880,4.31379549,3144.6,3143.0,0.418004]
[1763257323054,1.5973408,3144.5,3143.0,0.405504]
[1763257323580,0.4636,3144.4,3143.0,0.405504]
[1763257323984,0.4636,3144.4,3143.1,0.0125]
[1763257324279,0.4636,3144.4,3143.1,1.26631687]
[1763257324446,0.4636,3144.4,3143.3,0.84831287]
[1763257324647,1.1337408,3144.5,3143.4,0.405504]
[1763257324893,0.1944,3145.4,3144.1,4.25374847]
[1763257325090,0.1944,3145.4,3144.1,0.84831287]
[1763257325247,1.6067408,3145.3,3144.1,0.84831287]
[1763257325564,1.6067408,3145.3,3144.2,0.84831287]
[1763257325961,3.37364663,3145.4,3144.3,0.405504]
[1763257326226,0.1944,3145.4,3144.3,1.26631687]
[1763257326361,0.1953,3146.0,3144.6,5.10206134]
[1763257326561,3.17867934,3146.0,3144.9,1.25381687]
[1763257326798,3.17843802,3146.2,3145.0,3.17965023]
[1763257326799,4.5066158,3146.2,3145.0,3.17965023]
[1763257326951,0.1944,3145.9,3144.9,0.84831287]
[1763257327153,0.473,3146.1,3145.0,1.25381687]
[1763257327470,0.1944,3146.2,3145.2,0.405504]
[1763257327789,0.002,3146.9,3145.7,0.405504]
[1763257328004,0.002,3146.9,3145.9,1.25381687]
[1763257328157,0.002,3146.9,3146.1,0.84831287]
[1763257328358,0.002,3146.9,3146.1,0.405504]
[1763257328981,0.002,3146.9,3146.1,6.76252897]
[1763257329177,0.1964,3146.9,3146.0,0.84831287]
[1763257329454,0.473,3146.8,3145.3,0.84831287]
[1763257329691,0.473,3146.8,3145.2,5.16143022]
[1763257329907,0.473,3146.8,3145.2,0.84831287]
[1763257330108,0.002,3145.7,3145.1,4.027862]
[1763257330269,0.002,3145.7,3145.1,3.69445438]
[1763257330473,0.002,3145.7,3145.1,3.17954913]
[1763257330782,0.002,3145.7,3145.0,3.58515423]
[1763257330978,0.002,3145.7,3145.0,6.76480446]
[1763257331311,0.473,3145.6,3144.8,0.84831287]
[1763257331507,0.473,3145.6,3144.5,0.84831287]
[1763257331803,0.473,3145.6,3144.3,7.20895064]
[1763257332006,0.002,3145.7,3144.6,0.405504]
[1763257333169,0.002,3145.7,3144.8,0.405504]
[1763257333170,1.1357408,3145.7,3144.8,0.405504]
[1763257333508,0.002,3145.7,3144.8,0.405504]
[1763257334083,0.002,3145.7,3144.6,1.1337408]
[1763257334281,0.002,3145.7,3144.7,0.405504]
[1763257335193,0.002,3145.7,3144.8,3.17985245]
[1763257335806,0.002,3145.7,3144.8,6.3597049]
[1763257336910,0.002,3145.7,3144.4,1.58890297]
[1763257337230,0.002,3145.7,3144.0,3.18058501]
[1763257337231,0.1926,3144.9,3144.0,3.18058501]
[1763257337379,6.3597049,3144.8,3143.7,3.180954]
[1763257337610,6.3597049,3144.8,3143.8,0.40292669]
[1763257337611,3.17985245,3144.8,3143.8,0.40292669]
[1763257337806,3.17985245,3144.8,3143.8,1.53666749]
[1763257338453,6.3597049,3144.8,3143.7,6.3619191]
[1763257338611,6.3597049,3144.8,3143.5,4.26624847]
[1763257338612,0.4996,3144.7,3143.5,0.84831287]
[1763257338942,0.4996,3144.7,3142.6,6.51723056]
[1763257338943,1.6333408,3144.7,3143.4,3.18125823]
[1763257339143,0.4996,3144.6,3143.4,3.49938405]
[1763257339345,6.36031164,3144.5,3143.4,6.68065273]
[1763257339645,1.1337408,3144.7,3143.5,0.0125]
[1763257339943,1.1337408,3144.7,3143.5,0.405504]
[1763257340141,1.1337408,3144.7,3143.5,1.11411967]
[1763257340911,1.1337408,3145.0,3144.3,0.405504]
[1763257341336,0.4996,3145.2,3144.4,3.18025696]
[1763257341642,6.85768748,3145.6,3144.4,6.36051392]
[1763257341863,1.1337408,3145.5,3144.4,3.18025696]
[1763257342068,1.1337408,3145.5,3144.4,7.18250523]
[1763257342300,3.67864374,3145.6,3144.6,4.62165211]
[1763257342301,6.85768748,3145.6,3144.6,4.62165211]
[1763257342495,0.002,3145.7,3144.7,0.405504]
[1763257342982,0.002,3145.7,3145.0,4.62165211]
[1763257343168,0.002,3145.7,3145.1,0.03179549]
[1763257343470,0.002,3145.7,3145.1,3.17954913]
[1763257343659,0.002,3145.7,3144.9,3.17965268]
[1763257343660,0.002,3145.7,3144.9,0.405504]
[1763257344072,0.4996,3145.6,3144.6,0.405504]
[1763257345763,6.8576954,3145.6,3144.7,3.17995357]
[1763257346287,6.8576954,3145.6,3144.6,3.18004779]
[1763257346789,0.4996,3145.5,3144.6,0.405504]
[1763257346993,0.1926,3144.7,3144.3,0.84831287]
[1763257347156,0.1926,3144.7,3144.0,4.02897312]
[1763257347352,0.1926,3144.7,3144.1,0.405504]
[1763257347558,0.4996,3144.6,3143.8,0.84831287]
[1763257347778,0.4996,3144.6,3143.2,0.84831287]
[1763257347779,0.1926,3143.9,3143.2,0.84831287]
[1763257347981,1.6333408,3144.6,3143.3,0.84831287]
[1763257348168,0.1926,3144.7,3143.8,0.405504]
[1763257348381,0.4996,3145.0,3143.8,0.405504]
[1763257348579,0.1926,3145.1,3144.1,4.62165211]
[1763257348804,1.1337408,3145.0,3144.2,0.03180459]
[1763257349017,1.1337408,3145.0,3144.1,4.62165211]
[1763257349397,3.37215796,3145.1,3144.2,0.03180459]
[1763257349593,6.55171592,3145.1,3144.2,0.03180459]
[1763257349920,6.55171592,3145.1,3144.2,3.18045925]
[1763257350129,0.1926,3145.1,3144.2,3.18045925]
[1763257350439,6.55171012,3145.1,3144.0,0.405504]
[1763257350583,7.05131012,3145.1,3144.0,0.405504]
[1763257350790,0.4996,3145.0,3143.9,3.58626674]
[1763257351346,0.4996,3145.0,3143.9,7.61534235]
[1763257351822,0.4996,3145.0,3144.1,0.405504]
[1763257352024,0.4996,3145.0,3144.0,0.405504]
[1763257352025,3.17975134,3144.9,3144.0,0.405504]
[1763257352233,6.35950268,3144.9,3144.0,0.405504]
[1763257352550,6.35950268,3144.9,3143.9,0.84831287]
[1763257352742,1.6333408,3144.8,3143.6,4.0293488]
[1763257353104,0.4996,3144.7,3143.6,4.0293488]
[1763257353516,0.4996,3144.7,3143.6,3.18103593]
[1763257353896,3.37219309,3145.1,3143.6,3.18103593]
[1763257353897,0.1926,3145.1,3143.7,0.405504]
[1763257354220,0.1926,3145.1,3144.0,0.405504]
[1763257354422,1.1337408,3145.1,3144.2,0.405504]
[1763257354624,1.1337408,3145.1,3144.2,1.25381687]
[1763257354825,0.4855,3145.6,3144.4,0.405504]
[1763257355048,0.002,3145.7,3144.5,0.84831287]
[1763257355230,0.002,3145.7,3144.6,1.26631687]
[1763257355705,0.002,3145.7,3144.7,0.405504]
[1763257355916,0.002,3145.7,3144.9,1.5392448]
[1763257356108,0.002,3145.7,3145.1,0.405504]
[1763257356360,0.002,3145.7,3145.3,0.405504]
[1763257356632,0.002,3145.7,3145.6,1.5392448]
[1763257356991,0.002,3145.7,3145.6,2.38755767]
[1763257357191,0.002,3145.7,3145.6,1.5392448]
[1763257357419,0.002,3145.7,3145.6,2.24016578]
[1763257357625,0.002,3145.7,3145.6,2.25266578]
[1763257357828,0.002,3145.7,3145.6,2.24016578]
[1763257358002,0.002,3145.7,3145.6,5.41920952]
[1763257359033,0.002,3145.7,3145.6,6.5404]
[1763257359202,0.002,3145.7,3145.6,2.24016578]
[1763257359401,0.002,3145.7,3145.6,5.41920952]
[1763257359707,0.002,3145.7,3145.6,6.5404]
[1763257359917,0.002,3145.7,3145.6,6.5529]
[1763257360930,0.002,3145.7,3145.6,11.32858275]
[1763257361807,0.002,3145.7,3145.6,11.31608275]
[1763257362096,0.002,3145.7,3145.5,1.12119048]
[1763257362434,0.1886,3149.5,3145.8,0.002]
[1763257362591,0.1886,3149.5,3148.5,0.405504]
[1763257362794,0.1886,3149.5,3149.0,0.405504]
[1763257363034,0.1886,3149.5,3149.1,0.68226422]
[1763257363035,0.6741,3149.5,3149.1,0.68226422]
[1763257363339,0.6741,3149.5,3149.2,0.68226422]
[1763257363558,0.1886,3149.5,3148.8,1.25928717]
[1763257363863,0.002,3150.3,3149.5,0.405504]
[1763257364138,0.002,3150.3,3149.7,0.405504]
[1763257364435,0.002,3150.3,3149.8,0.405504]
[1763257365142,0.002,3150.3,3149.2,0.85378317]
[1763257365143,0.6761,3149.9,3149.2,0.85378317]
[1763257365444,0.6761,3149.9,3148.2,3.18685132]
[1763257365445,0.6761,3149.9,3148.7,0.405504]
[1763257365594,0.4855,3149.8,3148.7,0.405504]
[1763257366040,0.4855,3149.8,3148.9,0.405504]
[1763257366249,0.4855,3149.8,3148.9,1.5392448]
[1763257366424,0.1906,3149.9,3149.0,0.67535108]
[1763257366425,0.002,3149.9,3149.0,0.67535108]
[1763257366629,0.1906,3149.9,3149.0,0.67535108]
[1763257366806,0.1906,3149.9,3149.1,1.08085508]
[1763257367009,0.002,3149.9,3149.2,0.67535108]
[1763257367218,0.002,3149.9,3149.3,1.08085508]
[1763257367405,0.002,3149.9,3148.9,1.1337408]
[1763257367406,0.4855,3149.8,3148.9,1.1337408]
[1763257367629,0.4855,3149.8,3149.0,1.0798017]
[1763257367834,0.002,3149.9,3149.0,0.405504]
[1763257368025,0.1906,3149.9,3149.0,0.405504]
[1763257368427,0.1906,3149.9,3148.8,0.405504]
[1763257368428,3.85083269,3149.9,3148.8,0.405504]
[1763257368653,0.1906,3149.9,3149.0,0.405504]
[1763257369154,0.6761,3149.9,3149.0,0.405504]
[1763257369531,0.1906,3149.9,3149.0,0.405504]
[1763257369856,0.4855,3149.8,3149.0,0.405504]
[1763257370014,0.4855,3149.8,3148.9,0.405504]
[1763257370456,3.66038801,3149.8,3149.0,3.1756113]
[1763257370755,0.4855,3149.8,3149.0,6.3512226]
[1763257370918,0.4855,3149.7,3149.0,3.1756113]
[1763257371523,0.4855,3149.7,3149.0,6.70933413]
[1763257371747,0.1906,3149.9,3149.1,1.5392448]
[1763257372447,0.1906,3149.9,3149.3,0.405504]
[1763257372862,0.1906,3149.9,3149.0,1.49185233]
[1763257372863,3.85081213,3149.9,3149.0,0.35811153]
[1763257373028,3.85081213,3149.9,3149.1,0.405504]
[1763257373348,0.4855,3149.8,3149.1,3.58101446]
[1763257374518,3.17490554,3149.7,3149.1,3.58101446]
[1763257374716,3.17490554,3149.7,3149.0,3.1755531]
[1763257375042,3.17490554,3149.7,3148.0,3.17662007]
[1763257375043,0.4855,3149.6,3148.0,3.17662007]
[1763257375255,0.4855,3149.6,3148.1,1.45140281]
[1763257375568,0.4855,3149.6,3148.1,0.31766201]
[1763257375869,1.6192408,3149.6,3147.7,4.77568275]
[1763257376070,1.6192408,3149.6,3147.9,0.405504]
[1763257376254,0.1906,3149.9,3147.9,0.405504]
[1763257376255,0.6761,3149.9,3148.3,1.5392448]
[1763257376454,0.6761,3149.9,3148.0,0.0317662]
[1763257376455,0.6761,3149.9,3148.8,1.5392448]
[1763257376658,0.1906,3149.9,3149.0,1.5392448]
[1763257376860,0.002,3149.9,3149.0,1.5392448]
[1763257377663,0.002,3149.9,3149.0,0.405504]
[1763257378331,0.002,3149.9,3149.0,1.5497448]
[1763257378535,0.002,3149.9,3149.4,0.405504]
[1763257378960,0.6761,3149.9,3149.4,0.405504]
[1763257379359,0.002,3149.9,3149.4,5.18118675]
[1763257380373,0.002,3149.9,3149.6,0.405504]
[1763257380558,0.002,3149.9,3149.8,3.58030874]
[1763257380758,0.002,3149.9,3149.8,4.25583059]
[1763257380935,0.1906,3149.9,3149.8,1.08102585]
[1763257381139,0.1906,3149.9,3149.1,2.75661079]
[1763257381140,0.6761,3149.9,3149.0,0.85378317]
[1763257381394,0.6761,3149.9,3149.0,3.17551627]
[1763257381562,0.4855,3149.8,3149.0,3.17551627]
[1763257382161,0.4855,3149.8,3149.1,0.405504]
[1763257382365,0.4855,3149.8,3148.9,1.1337408]
[1763257382566,3.17490554,3149.7,3148.6,6.35202946]
[1763257382780,0.4855,3149.8,3148.7,1.30913737]
[1763257383089,6.83513148,3149.8,3148.9,0.405504]
[1763257383293,6.83513148,3149.8,3148.7,0.63520295]
[1763257383594,6.83513148,3149.8,3148.6,1.1337408]
[1763257383595,0.4855,3149.7,3148.8,0.67495563]
[1763257383895,0.4855,3149.7,3148.4,10.16014223]
[1763257384104,0.4855,3149.7,3148.5,1.08049644]
[1763257384260,1.6192408,3149.7,3148.1,0.85378317]
[1763257384462,0.4617,3149.6,3148.3,0.85378317]
[1763257384655,1.1337408,3149.4,3148.4,0.67614128]
[1763257384855,0.4617,3149.3,3148.5,0.67614128]
[1763257385060,0.4617,3149.3,3148.3,0.405504]
[1763257385261,0.4617,3149.3,3148.4,0.67616772]
[1763257385596,6.3502143,3149.5,3148.4,0.67616772]
[1763257385597,0.4617,3149.7,3148.6,0.405504]
[1763257385767,1.5954408,3149.7,3148.8,0.405504]
[1763257385969,0.1906,3149.9,3149.0,0.405504]
[1763257386169,0.002,3149.9,3149.2,0.405504]
[1763257386368,0.1936,3149.9,3149.4,0.405504]
[1763257386583,0.1936,3149.9,3149.5,0.67616772]
[1763257386792,0.1936,3149.9,3149.5,3.17510715]
[1763257386793,0.6553,3149.9,3149.5,3.17510715]
[1763257386974,3.83003923,3149.9,3149.2,0.405504]
[1763257387188,0.4617,3149.8,3149.3,0.67777527]
[1763257387492,0.4617,3149.8,3149.4,0.67777527]
[1763257387703,0.4617,3149.8,3149.5,0.67777527]
[1763257388018,0.4617,3149.8,3149.2,1.25928717]
[1763257388019,0.4617,3149.8,3149.6,0.67777527]
[1763257388211,0.002,3149.9,3149.7,0.67856108]
[1763257388508,3.36830395,3149.9,3149.8,0.67856108]
[1763257388677,3.83007823,3149.9,3149.3,0.85378317]
[1763257388871,3.83007823,3149.9,3149.4,0.67917131]
[1763257389099,3.83001317,3149.9,3149.5,0.67917131]
[1763257389304,0.4617,3149.8,3149.6,0.67917131]
[1763257389616,0.4617,3149.8,3149.7,0.67917131]
[1763257390106,0.4617,3149.8,3149.7,0.68001967]
[1763257391009,0.002,3149.9,3149.7,1.53004425]
[1763257391189,0.002,3149.9,3149.8,1.08552367]
[1763257391389,0.002,3149.9,3149.8,1.09602367]
[1763257391703,0.002,3150.3,3149.8,1.09602367]
[1763257391704,0.002,3150.3,3149.8,3.35850576]
[1763257391906,0.002,3150.3,3150.2,0.405504]
[1763257392218,0.002,3150.3,3150.2,1.08552367]
[1763257392574,0.002,3150.3,3150.2,0.68001967]
[1763257392781,0.4637,3150.3,3150.2,0.68001967]
[1763257392994,0.002,3150.3,3150.2,2.96179071]
[1763257393524,0.002,3150.3,3150.2,0.68001967]
[1763257394281,0.002,3150.3,3150.2,4.87354771]
[1763257395319,0.002,3150.3,3150.2,3.97888781]
[1763257395684,0.002,3150.3,3150.2,3.36526539]
[1763257395886,0.002,3150.3,3150.2,6.53966701]
[1763257396411,0.002,3150.3,3150.2,3.36526539]
[1763257396615,0.002,3150.3,3150.2,2.95976139]
[1763257396911,0.9501,3150.3,3150.2,0.68001967]
[1763257397612,0.002,3150.3,3150.2,0.68001967]
[1763257397831,0.9501,3150.3,3150.2,0.68001967]
[1763257398028,0.9501,3150.3,3150.2,2.38912028]
[1763257398229,0.9501,3150.3,3150.2,0.68001967]
[1763257398535,4.12440086,3150.3,3150.2,1.81936465]
[1763257398829,5.25814166,3150.3,3150.2,0.68001967]
[1763257399329,5.25814166,3150.3,3149.2,3.17536734]
[1763257399330,1.1337408,3150.2,3149.7,0.85462585]
[1763257399515,0.6618,3149.8,3149.6,0.85462585]
[1763257399718,0.1892,3150.1,3149.7,1.53839904]
[1763257399909,0.1892,3150.1,3149.8,0.68377319]